[Event "Open Gent FIDE-rated 2023"]
[Site "Gent, Belgium"]
[Date "2023.07.16"]
[Round "4.1"]
[White "Vantorre, Nils"]
[Black "Goudriaan, Etienne"]
[Result "0-1"]
[TimeControl "90'+30''"]
[BlackTitle "IM"]
[WhiteElo "2058"]
[BlackElo "2322"]

1. e4 {[%clk 01:30:52]} {[%emt 00:00:07]} c6 {[%clk 01:30:48]} {[%emt
00:00:12]} 2. Nf3 {[%clk 01:27:14]} {[%emt 00:04:09]} d5 {[%clk 01:31:02]}
{[%emt 00:00:16]} 3. d3 {[%clk 01:27:39]} {[%emt 00:00:05]} dxe4 {[%clk
01:31:00]} {[%emt 00:00:32]} 4. dxe4 {[%clk 01:28:03]} {[%emt 00:00:06]} Qxd1+
{[%clk 01:31:27]} {[%emt 00:00:03]} 5. Kxd1 {[%clk 01:28:27]} {[%emt 00:00:06]}
Nf6 {[%clk 01:31:07]} {[%emt 00:00:49]} 6. Nbd2 {[%clk 01:28:43]} {[%emt
00:00:15]} g6 {[%clk 01:29:38]} {[%emt 00:01:59]} 7. Bd3 {[%clk 01:24:06]}
{[%emt 00:05:07]} Nbd7 {[%clk 01:27:20]} {[%emt 00:02:46]} 8. c3 {[%clk
01:23:30]} {[%emt 00:01:08]} Ng4 {[%clk 01:26:18]} {[%emt 00:01:33]} 9. Ke2
{[%clk 01:23:13]} {[%emt 00:00:46]} Nge5 {[%clk 01:26:09]} {[%emt 00:00:39]} 10.
Nxe5 {[%clk 01:00:18]} {[%emt 00:23:26]} Nxe5 {[%clk 01:23:49]} {[%emt
00:02:49]} 11. Bc2 {[%clk 00:59:26]} {[%emt 00:01:22]} b6 {[%clk 01:16:03]}
{[%emt 00:08:16]} 12. b3 {[%clk 00:57:32]} {[%emt 00:02:24]} Bg7 {[%clk
01:15:37]} {[%emt 00:00:56]} 13. Bb2 {[%clk 00:43:19]} {[%emt 00:14:44]} O-O
{[%clk 01:14:34]} {[%emt 00:01:33]} 14. c4 {[%clk 00:39:34]} {[%emt 00:04:16]}
c5 {[%clk 01:07:32]} {[%emt 00:07:31]} 15. f4 {[%clk 00:35:28]} {[%emt
00:04:36]} Nc6 {[%clk 01:04:32]} {[%emt 00:03:30]} 16. e5 {[%clk 00:34:48]}
{[%emt 00:01:10]} Bg4+ {[%clk 01:01:29]} {[%emt 00:03:32]} 17. Ke3 {[%clk
00:29:05]} {[%emt 00:06:14]} f6 {[%clk 00:59:29]} {[%emt 00:02:31]} 18. exf6
{[%clk 00:22:19]} {[%emt 00:07:16]} exf6 {[%clk 00:59:47]} {[%emt 00:00:11]} 19.
Be4 {[%clk 00:18:14]} {[%emt 00:04:36]} Rae8 {[%clk 00:54:42]} {[%emt
00:05:34]} 20. Kf2 {[%clk 00:17:30]} {[%emt 00:01:15]} Nb4 {[%clk 00:54:14]}
{[%emt 00:00:58]} 21. Bc3 {[%clk 00:03:09]} {[%emt 00:14:51]} f5 {[%clk
00:54:04]} {[%emt 00:00:40]} 22. Bxg7 {[%clk 00:03:34]} {[%emt 00:00:05]} Kxg7
{[%clk 00:54:31]} {[%emt 00:00:03]} 23. Bf3 {[%clk 00:03:55]} {[%emt 00:00:09]}
Nd3+ {[%clk 00:54:38]} {[%emt 00:00:22]} 24. Kg3 {[%clk 00:04:19]} {[%emt
00:00:07]} Bxf3 {[%clk 00:53:04]} {[%emt 00:02:04]} 25. Nxf3 {[%clk 00:04:35]}
{[%emt 00:00:14]} Re3 {[%clk 00:49:06]} {[%emt 00:04:27]} 26. Rhd1 {[%clk
00:03:22]} {[%emt 00:01:43]} Rfe8 {[%clk 00:46:46]} {[%emt 00:02:50]} 27. Rd2
{[%clk 00:02:43]} {[%emt 00:01:09]} R8e4 {[%clk 00:47:09]} {[%emt 00:00:07]} 28.
Rad1 {[%clk 00:02:06]} {[%emt 00:01:08]} Nxf4 {[%clk 00:47:29]} {[%emt
00:00:10]} 29. Rd7+ {[%clk 00:01:56]} {[%emt 00:00:40]} Kh6 {[%clk 00:47:48]}
{[%emt 00:00:10]} 30. Rxa7 {[%clk 00:01:45]} {[%emt 00:00:41]} Re2 {[%clk
00:45:28]} {[%emt 00:02:49]} 31. Rd2 {[%clk 00:01:54]} {[%emt 00:00:22]} Nh5+
{[%clk 00:44:18]} {[%emt 00:01:39]} 32. Kh3 {[%clk 00:02:18]} {[%emt 00:00:06]}
Rxd2 {[%clk 00:38:47]} {[%emt 00:06:02]} 33. Nxd2 {[%clk 00:02:42]} {[%emt
00:00:06]} Re3+ {[%clk 00:39:10]} {[%emt 00:00:07]} 34. Nf3 {[%clk 00:02:40]}
{[%emt 00:00:32]} g5 {[%clk 00:39:13]} {[%emt 00:00:26]} 35. Rb7 {[%clk
00:01:22]} {[%emt 00:01:48]} g4+ {[%clk 00:39:23]} {[%emt 00:00:20]} 36. Kh4
{[%clk 00:01:49]} {[%emt 00:00:03]} Nf4 {[%clk 00:37:54]} {[%emt 00:01:59]} 37.
Rxb6+ {[%clk 00:01:56]} {[%emt 00:00:24]} Ng6+ {[%clk 00:38:20]} {[%emt
00:00:04]} 38. Kg3 {[%clk 00:02:01]} {[%emt 00:00:25]} gxf3 {[%clk 00:38:46]}
{[%emt 00:00:05]} 39. gxf3 {[%clk 00:02:22]} {[%emt 00:00:08]} Kg5 {[%clk
00:38:47]} {[%emt 00:00:28]} 40. a4 {[%clk 00:01:35]} {[%emt 00:01:18]} f4+
{[%clk 00:35:48]} {[%emt 00:03:29]} 41. Kf2 {[%clk 00:01:58]} {[%emt 00:00:06]}
Ne5 {[%clk 00:36:00]} {[%emt 00:00:18]} 0-1

[Event "Open Gent FIDE-rated 2023"]
[Site "Gent, Belgium"]
[Date "2023.07.16"]
[Round "4.2"]
[White "van Osch, Mees"]
[Black "van Kuijk, Vadim"]
[Result "1-0"]
[TimeControl "90'+30''"]
[WhiteTitle "FM"]
[WhiteElo "2320"]
[BlackElo "1997"]

1. e4 {[%clk 01:30:57]} {[%emt 00:00:02]} c6 {[%clk 01:30:22]} {[%emt
00:00:38]} 2. Nc3 {[%clk 01:31:22]} {[%emt 00:00:06]} d5 {[%clk 01:30:48]}
{[%emt 00:00:03]} 3. Nf3 {[%clk 01:31:48]} {[%emt 00:00:04]} dxe4 {[%clk
01:30:39]} {[%emt 00:00:39]} 4. Nxe4 {[%clk 01:32:14]} {[%emt 00:00:04]} Nf6
{[%clk 01:31:01]} {[%emt 00:00:07]} 5. Qe2 {[%clk 01:32:37]} {[%emt 00:00:07]}
Na6 {[%clk 01:30:49]} {[%emt 00:00:43]} 6. Nxf6+ {[%clk 01:26:47]} {[%emt
00:06:20]} gxf6 {[%clk 01:31:10]} {[%emt 00:00:08]} 7. g3 {[%clk 01:27:11]}
{[%emt 00:00:06]} Nb4 {[%clk 01:28:44]} {[%emt 00:02:57]} 8. d3 {[%clk
01:14:23]} {[%emt 00:13:18]} Bg4 {[%clk 01:22:41]} {[%emt 00:06:32]} 9. Bg2
{[%clk 01:14:28]} {[%emt 00:00:25]} Qd5 {[%clk 01:22:22]} {[%emt 00:00:49]} 10.
Kd1 {[%clk 01:14:27]} {[%emt 00:00:32]} f5 {[%clk 01:11:47]} {[%emt 00:11:05]}
11. h3 {[%clk 01:13:40]} {[%emt 00:01:16]} Bh5 {[%clk 01:08:06]} {[%emt
00:04:12]} 12. a3 {[%clk 01:08:06]} {[%emt 00:06:05]} Na6 {[%clk 01:04:20]}
{[%emt 00:04:15]} 13. c4 {[%clk 01:08:24]} {[%emt 00:00:12]} Qd7 {[%clk
01:03:12]} {[%emt 00:01:37]} 14. g4 {[%clk 01:05:29]} {[%emt 00:03:26]} fxg4
{[%clk 01:02:52]} {[%emt 00:00:49]} 15. Ne5 {[%clk 01:05:53]} {[%emt 00:00:06]}
Qd4 {[%clk 00:59:13]} {[%emt 00:04:10]} 16. hxg4 {[%clk 00:55:25]} {[%emt
00:10:57]} Bg6 {[%clk 00:57:12]} {[%emt 00:02:31]} 17. Nxc6 {[%clk 00:51:08]}
{[%emt 00:04:48]} bxc6 {[%clk 00:40:58]} {[%emt 00:16:43]} 18. Bxc6+ {[%clk
00:48:42]} {[%emt 00:02:56]} Kd8 {[%clk 00:41:27]} {[%emt 00:00:01]} 19. Be3
{[%clk 00:46:55]} {[%emt 00:02:16]} Qd6 {[%clk 00:35:47]} {[%emt 00:06:10]} 20.
Bxa8 {[%clk 00:46:57]} {[%emt 00:00:28]} Bxd3 {[%clk 00:36:11]} {[%emt
00:00:05]} 21. Qd2 {[%clk 00:47:17]} {[%emt 00:00:10]} Bg7 {[%clk 00:36:31]}
{[%emt 00:00:10]} 22. Ke1 {[%clk 00:42:10]} {[%emt 00:05:38]} 1-0

[Event "Open Gent FIDE-rated 2023"]
[Site "Gent, Belgium"]
[Date "2023.07.16"]
[Round "4.3"]
[White "Dreelinck, Adriaan"]
[Black "Zouaghi, Amir"]
[Result "1-0"]
[TimeControl "90'+30''"]
[WhiteElo "2214"]
[BlackElo "1973"]

1. d4 {[%clk 01:30:52]} {[%emt 00:00:06]} d5 {[%clk 01:30:46]} {[%emt
00:00:14]} 2. c4 {[%clk 01:31:14]} {[%emt 00:00:09]} c6 {[%clk 01:31:05]}
{[%emt 00:00:11]} 3. Nc3 {[%clk 01:31:00]} {[%emt 00:00:45]} Nf6 {[%clk
01:31:23]} {[%emt 00:00:11]} 4. e3 {[%clk 01:31:25]} {[%emt 00:00:05]} e6
{[%clk 01:31:44]} {[%emt 00:00:10]} 5. Nf3 {[%clk 01:31:48]} {[%emt 00:00:07]}
Nbd7 {[%clk 01:31:56]} {[%emt 00:00:18]} 6. Bd3 {[%clk 01:32:01]} {[%emt
00:00:16]} dxc4 {[%clk 01:32:02]} {[%emt 00:00:24]} 7. Bxc4 {[%clk 01:32:26]}
{[%emt 00:00:05]} b5 {[%clk 01:32:18]} {[%emt 00:00:14]} 8. Bd3 {[%clk
01:32:52]} {[%emt 00:00:04]} Bd6 {[%clk 01:31:40]} {[%emt 00:01:08]} 9. O-O
{[%clk 01:32:48]} {[%emt 00:00:33]} Bb7 {[%clk 01:31:28]} {[%emt 00:00:43]} 10.
Qc2 {[%clk 01:31:47]} {[%emt 00:01:31]} O-O {[%clk 01:30:36]} {[%emt 00:01:21]}
11. e4 {[%clk 01:31:35]} {[%emt 00:00:42]} e5 {[%clk 01:30:51]} {[%emt
00:00:15]} 12. dxe5 {[%clk 01:31:31]} {[%emt 00:00:34]} Nxe5 {[%clk 01:27:27]}
{[%emt 00:03:54]} 13. Nxe5 {[%clk 01:31:45]} {[%emt 00:00:16]} Bxe5 {[%clk
01:27:36]} {[%emt 00:00:22]} 14. h3 {[%clk 01:32:12]} {[%emt 00:00:03]} a6
{[%clk 01:18:49]} {[%emt 00:09:17]} 15. Be3 {[%clk 01:29:39]} {[%emt 00:03:02]}
Re8 {[%clk 01:09:41]} {[%emt 00:09:39]} 16. f4 {[%clk 01:25:29]} {[%emt
00:04:40]} Bd4 {[%clk 01:06:48]} {[%emt 00:03:23]} 17. Bxd4 {[%clk 01:23:07]}
{[%emt 00:02:52]} Qxd4+ {[%clk 01:07:09]} {[%emt 00:00:09]} 18. Kh2 {[%clk
01:23:28]} {[%emt 00:00:09]} h6 {[%clk 00:44:29]} {[%emt 00:23:10]} 19. Rad1
{[%clk 01:20:09]} {[%emt 00:03:49]} Qb6 {[%clk 00:43:15]} {[%emt 00:01:44]} 20.
e5 {[%clk 01:09:53]} {[%emt 00:10:45]} Nd5 {[%clk 00:43:17]} {[%emt 00:00:27]}
21. Nxd5 {[%clk 01:09:19]} {[%emt 00:01:04]} cxd5 {[%clk 00:43:23]} {[%emt
00:00:25]} 22. Rf3 {[%clk 01:09:26]} {[%emt 00:00:22]} f6 {[%clk 00:39:05]}
{[%emt 00:04:48]} 23. Bg6 {[%clk 01:02:16]} {[%emt 00:07:40]} Re7 {[%clk
00:36:13]} {[%emt 00:03:22]} 24. Qf5 {[%clk 00:58:27]} {[%emt 00:04:19]} Rf8
{[%clk 00:23:43]} {[%emt 00:12:59]} 25. Re1 {[%clk 00:50:57]} {[%emt 00:08:01]}
Bc8 {[%clk 00:17:00]} {[%emt 00:07:13]} 26. Qd3 {[%clk 00:35:28]} {[%emt
00:15:58]} Bb7 {[%clk 00:09:04]} {[%emt 00:08:25]} 27. Rg3 {[%clk 00:33:09]}
{[%emt 00:02:48]} fxe5 {[%clk 00:07:44]} {[%emt 00:01:52]} 28. fxe5 {[%clk
00:27:18]} {[%emt 00:06:21]} Qf2 {[%clk 00:07:21]} {[%emt 00:00:53]} 29. Re2
{[%clk 00:21:25]} {[%emt 00:06:24]} Qf4 {[%clk 00:07:31]} {[%emt 00:00:20]} 30.
e6 {[%clk 00:19:51]} {[%emt 00:02:04]} Rf6 {[%clk 00:06:21]} {[%emt 00:01:40]}
31. Bf7+ {[%clk 00:19:11]} {[%emt 00:01:09]} Kh8 {[%clk 00:05:58]} {[%emt
00:00:54]} 32. Qa3 {[%clk 00:14:23]} {[%emt 00:05:18]} b4 {[%clk 00:05:45]}
{[%emt 00:00:43]} 33. Qa5 {[%clk 00:13:19]} {[%emt 00:01:34]} Qd6 {[%clk
00:06:09]} {[%emt 00:00:06]} 34. Rc2 {[%clk 00:11:15]} {[%emt 00:02:34]} d4
{[%clk 00:03:38]} {[%emt 00:03:01]} 35. Qh5 {[%clk 00:08:34]} {[%emt 00:03:10]}
Qf4 {[%clk 00:02:18]} {[%emt 00:01:51]} 36. Qc5 {[%clk 00:07:49]} {[%emt
00:01:15]} Rfxf7 {[%clk 00:02:04]} {[%emt 00:00:44]} 37. exf7 {[%clk 00:07:57]}
{[%emt 00:00:22]} Rxf7 {[%clk 00:02:32]} {[%emt 00:00:02]} 38. Qxb4 {[%clk
00:06:49]} {[%emt 00:01:38]} h5 {[%clk 00:02:38]} {[%emt 00:00:24]} 39. Qd2
{[%clk 00:06:46]} {[%emt 00:00:32]} Qe5 {[%clk 00:02:50]} {[%emt 00:00:19]} 40.
Qg5 {[%clk 00:05:38]} {[%emt 00:01:37]} Rf5 {[%clk 00:03:06]} {[%emt 00:00:14]}
41. Qd8+ {[%clk 00:05:35]} {[%emt 00:00:34]} Kh7 {[%clk 00:03:31]} {[%emt
00:00:05]} 42. Rc7 {[%clk 00:05:46]} {[%emt 00:00:18]} Bd5 {[%clk 00:03:39]}
{[%emt 00:00:22]} 43. Rc8 {[%clk 00:04:40]} {[%emt 00:01:36]} g6 {[%clk
00:04:05]} {[%emt 00:00:04]} 44. Qc7+ {[%clk 00:03:17]} {[%emt 00:01:54]} Qxc7
{[%clk 00:04:11]} {[%emt 00:00:24]} 45. Rxc7+ {[%clk 00:03:44]} {[%emt
00:00:01]} Kh6 {[%clk 00:04:33]} {[%emt 00:00:09]} 46. Rd7 {[%clk 00:03:32]}
{[%emt 00:00:42]} Bxa2 {[%clk 00:04:45]} {[%emt 00:00:18]} 47. Rxd4 {[%clk
00:03:44]} {[%emt 00:00:17]} Rf2 {[%clk 00:04:58]} {[%emt 00:00:17]} 48. Rd6
{[%clk 00:02:14]} {[%emt 00:01:59]} Bb1 {[%clk 00:05:23]} {[%emt 00:00:06]} 49.
Rb6 {[%clk 00:01:14]} {[%emt 00:01:31]} Be4 {[%clk 00:04:52]} {[%emt 00:01:01]}
50. b3 {[%clk 00:00:51]} {[%emt 00:00:52]} Ra2 {[%clk 00:04:57]} {[%emt
00:00:25]} 51. Kg1 {[%clk 00:00:43]} {[%emt 00:00:38]} a5 {[%clk 00:05:14]}
{[%emt 00:00:13]} 52. h4 {[%clk 00:00:42]} {[%emt 00:00:30]} a4 {[%clk
00:05:15]} {[%emt 00:00:29]} 53. bxa4 {[%clk 00:00:36]} {[%emt 00:00:37]} Rxa4
{[%clk 00:05:36]} {[%emt 00:00:08]} 54. Re3 {[%clk 00:00:37]} {[%emt 00:00:29]}
Bf5 {[%clk 00:05:49]} {[%emt 00:00:15]} 55. g3 {[%clk 00:01:01]} {[%emt
00:00:08]} Ra2 {[%clk 00:05:41]} {[%emt 00:00:37]} 56. Rf3 {[%clk 00:01:12]}
{[%emt 00:00:18]} Be4 {[%clk 00:06:05]} {[%emt 00:00:07]} 57. Re3 {[%clk
00:00:55]} {[%emt 00:00:48]} Bd5 {[%clk 00:05:16]} {[%emt 00:01:19]} 58. Rd6
{[%clk 00:00:54]} {[%emt 00:00:32]} Bc4 {[%clk 00:03:14]} {[%emt 00:02:31]} 59.
Rc3 {[%clk 00:00:55]} {[%emt 00:00:29]} Bg8 {[%clk 00:03:02]} {[%emt 00:00:42]}
60. Rcc6 {[%clk 00:00:59]} {[%emt 00:00:27]} Bh7 {[%clk 00:02:31]} {[%emt
00:01:00]} 61. Rc8 {[%clk 00:01:12]} {[%emt 00:00:17]} Ra7 {[%clk 00:02:47]}
{[%emt 00:00:15]} 62. Kg2 {[%clk 00:01:28]} {[%emt 00:00:14]} Rf7 {[%clk
00:03:06]} {[%emt 00:00:10]} 63. Rcd8 {[%clk 00:01:43]} {[%emt 00:00:16]} Re7
{[%clk 00:02:30]} {[%emt 00:01:06]} 64. Kf3 {[%clk 00:01:51]} {[%emt 00:00:21]}
Ra7 {[%clk 00:02:29]} {[%emt 00:00:32]} 65. Kf4 {[%clk 00:02:01]} {[%emt
00:00:19]} Rf7+ {[%clk 00:02:38]} {[%emt 00:00:21]} 66. Ke5 {[%clk 00:02:20]}
{[%emt 00:00:11]} Rf5+ {[%clk 00:02:14]} {[%emt 00:00:54]} 67. Ke6 {[%clk
00:01:29]} {[%emt 00:01:21]} g5 {[%clk 00:01:12]} {[%emt 00:01:33]} 68. Rh8
{[%clk 00:00:58]} {[%emt 00:01:01]} g4 {[%clk 00:01:34]} {[%emt 00:00:07]} 69.
Rxh7 {[%clk 00:01:17]} {[%emt 00:00:12]} 1-0

[Event "Open Gent FIDE-rated 2023"]
[Site "Gent, Belgium"]
[Date "2023.07.16"]
[Round "4.4"]
[White "Groen, Jari"]
[Black "Dreelinck, Jacob"]
[Result "0-1"]
[TimeControl "90'+30''"]
[WhiteElo "1971"]
[BlackElo "2089"]

1. e4 {[%clk 01:30:54]} {[%emt 00:00:05]} e6 {[%clk 01:31:00]} {[%emt
00:00:01]} 2. d4 {[%clk 01:31:07]} {[%emt 00:00:16]} d5 {[%clk 01:31:25]}
{[%emt 00:00:05]} 3. Nc3 {[%clk 01:31:31]} {[%emt 00:00:07]} Nf6 {[%clk
01:31:35]} {[%emt 00:00:19]} 4. e5 {[%clk 01:31:50]} {[%emt 00:00:11]} Nfd7
{[%clk 01:31:59]} {[%emt 00:00:06]} 5. f4 {[%clk 01:32:07]} {[%emt 00:00:13]}
c5 {[%clk 01:32:25]} {[%emt 00:00:04]} 6. Nf3 {[%clk 01:32:28]} {[%emt
00:00:09]} Nc6 {[%clk 01:32:50]} {[%emt 00:00:05]} 7. Be3 {[%clk 01:32:34]}
{[%emt 00:00:23]} Rb8 {[%clk 01:33:16]} {[%emt 00:00:05]} 8. Be2 {[%clk
01:23:14]} {[%emt 00:09:50]} cxd4 {[%clk 01:33:40]} {[%emt 00:00:05]} 9. Nxd4
{[%clk 01:23:11]} {[%emt 00:00:33]} Bc5 {[%clk 01:33:57]} {[%emt 00:00:13]} 10.
a3 {[%clk 01:15:11]} {[%emt 00:08:30]} O-O {[%clk 01:31:16]} {[%emt 00:03:10]}
11. b4 {[%clk 01:04:03]} {[%emt 00:11:38]} Bxd4 {[%clk 01:20:03]} {[%emt
00:11:43]} 12. Bxd4 {[%clk 01:04:25]} {[%emt 00:00:08]} Nb6 {[%clk 01:10:17]}
{[%emt 00:10:16]} 13. Bc5 {[%clk 00:58:12]} {[%emt 00:06:43]} Ne7 {[%clk
01:04:22]} {[%emt 00:06:25]} 14. O-O {[%clk 00:55:39]} {[%emt 00:03:03]} Bd7
{[%clk 01:02:08]} {[%emt 00:02:44]} 15. Rf3 {[%clk 00:50:04]} {[%emt 00:06:05]}
Re8 {[%clk 00:40:56]} {[%emt 00:21:43]} 16. Bd3 {[%clk 00:36:10]} {[%emt
00:14:23]} h6 {[%clk 00:37:04]} {[%emt 00:04:21]} 17. Ne2 {[%clk 00:25:38]}
{[%emt 00:11:02]} Rc8 {[%clk 00:34:48]} {[%emt 00:02:47]} 18. Nd4 {[%clk
00:19:52]} {[%emt 00:06:16]} Na4 {[%clk 00:33:29]} {[%emt 00:01:49]} 19. Rg3
{[%clk 00:18:08]} {[%emt 00:02:13]} Nxc5 {[%clk 00:29:37]} {[%emt 00:04:23]} 20.
bxc5 {[%clk 00:12:15]} {[%emt 00:06:24]} Nf5 {[%clk 00:24:06]} {[%emt
00:06:00]} 21. Bxf5 {[%clk 00:11:10]} {[%emt 00:01:35]} exf5 {[%clk 00:24:23]}
{[%emt 00:00:13]} 22. Qh5 {[%clk 00:11:00]} {[%emt 00:00:40]} Kf8 {[%clk
00:23:17]} {[%emt 00:01:36]} 23. Nxf5 {[%clk 00:08:57]} {[%emt 00:02:32]} Bxf5
{[%clk 00:23:42]} {[%emt 00:00:06]} 24. Qxf5 {[%clk 00:09:24]} {[%emt
00:00:03]} Kg8 {[%clk 00:15:05]} {[%emt 00:09:06]} 25. Qh5 {[%clk 00:05:19]}
{[%emt 00:04:35]} Rc6 {[%clk 00:14:01]} {[%emt 00:01:35]} 26. Rb1 {[%clk
00:03:47]} {[%emt 00:02:02]} Qe7 {[%clk 00:13:54]} {[%emt 00:00:36]} 27. Qf3
{[%clk 00:02:09]} {[%emt 00:02:07]} Qxc5+ {[%clk 00:14:19]} {[%emt 00:00:06]}
28. Qe3 {[%clk 00:02:20]} {[%emt 00:00:19]} Qxc2 {[%clk 00:13:40]} {[%emt
00:01:09]} 29. Qd3 {[%clk 00:01:27]} {[%emt 00:01:23]} Qc5+ {[%clk 00:13:39]}
{[%emt 00:00:31]} 30. Qe3 {[%clk 00:00:53]} {[%emt 00:01:04]} b6 {[%clk
00:12:53]} {[%emt 00:01:17]} 31. Rd1 {[%clk 00:00:35]} {[%emt 00:00:48]} Rd8
{[%clk 00:11:59]} {[%emt 00:01:23]} 32. f5 {[%clk 00:00:31]} {[%emt 00:00:34]}
d4 {[%clk 00:10:54]} {[%emt 00:01:35]} 33. Qe4 {[%clk 00:00:41]} {[%emt
00:00:20]} Qd5 {[%clk 00:05:07]} {[%emt 00:06:18]} 34. Qxd5 {[%clk 00:00:31]}
{[%emt 00:00:40]} Rxd5 {[%clk 00:05:30]} {[%emt 00:00:06]} 35. Rgd3 {[%clk
00:00:38]} {[%emt 00:00:24]} Rc4 {[%clk 00:04:35]} {[%emt 00:01:25]} 36. Kf2
{[%clk 00:00:47]} {[%emt 00:00:21]} Rxe5 {[%clk 00:04:52]} {[%emt 00:00:13]} 37.
Rxd4 {[%clk 00:01:04]} {[%emt 00:00:13]} Rxf5+ {[%clk 00:05:08]} {[%emt
00:00:14]} 38. Ke3 {[%clk 00:01:17]} {[%emt 00:00:17]} Re5+ {[%clk 00:05:10]}
{[%emt 00:00:28]} 39. Kf4 {[%clk 00:01:03]} {[%emt 00:00:44]} Rxd4+ {[%clk
00:05:28]} {[%emt 00:00:12]} 40. Rxd4 {[%clk 00:01:30]} {[%emt 00:00:03]} Ra5
{[%clk 00:05:26]} {[%emt 00:00:32]} 41. a4 {[%clk 00:01:15]} {[%emt 00:00:45]}
g6 {[%clk 00:05:30]} {[%emt 00:00:25]} 42. Kf3 {[%clk 00:01:10]} {[%emt
00:00:35]} Kg7 {[%clk 00:05:56]} {[%emt 00:00:04]} 43. Ke3 {[%clk 00:01:14]}
{[%emt 00:00:27]} Re5+ {[%clk 00:05:51]} {[%emt 00:00:34]} 44. Kf3 {[%clk
00:01:32]} {[%emt 00:00:12]} Kf6 {[%clk 00:05:44]} {[%emt 00:00:36]} 45. Rd7
{[%clk 00:01:26]} {[%emt 00:00:37]} Ra5 {[%clk 00:05:36]} {[%emt 00:00:37]} 46.
Rd4 {[%clk 00:01:52]} {[%emt 00:00:04]} Ke6 {[%clk 00:04:06]} {[%emt 00:02:00]}
47. Ke3 {[%clk 00:00:47]} {[%emt 00:01:35]} Rd5 {[%clk 00:04:26]} {[%emt
00:00:10]} 48. Rc4 {[%clk 00:01:04]} {[%emt 00:00:13]} Rc5 {[%clk 00:04:14]}
{[%emt 00:00:42]} 49. Rd4 {[%clk 00:01:18]} {[%emt 00:00:16]} Re5+ {[%clk
00:04:28]} {[%emt 00:00:16]} 50. Kf3 {[%clk 00:01:40]} {[%emt 00:00:08]} Rd5
{[%clk 00:03:40]} {[%emt 00:01:18]} 51. Rc4 {[%clk 00:01:46]} {[%emt 00:00:25]}
Kd6 {[%clk 00:03:49]} {[%emt 00:00:22]} 52. Ke3 {[%clk 00:01:43]} {[%emt
00:00:32]} Re5+ {[%clk 00:04:10]} {[%emt 00:00:09]} 53. Kf3 {[%clk 00:01:44]}
{[%emt 00:00:28]} b5 {[%clk 00:02:35]} {[%emt 00:02:05]} 54. axb5 {[%clk
00:01:44]} {[%emt 00:00:31]} Rxb5 {[%clk 00:03:02]} {[%emt 00:00:02]} 55. Rc8
{[%clk 00:02:02]} {[%emt 00:00:12]} a5 {[%clk 00:02:36]} {[%emt 00:00:57]} 56.
Ra8 {[%clk 00:01:51]} {[%emt 00:00:41]} Kc5 {[%clk 00:01:29]} {[%emt 00:01:37]}
57. Ra7 {[%clk 00:00:35]} {[%emt 00:01:46]} Kb4 {[%clk 00:01:31]} {[%emt
00:00:28]} 58. Rxf7 {[%clk 00:00:39]} {[%emt 00:00:26]} Rf5+ {[%clk 00:01:46]}
{[%emt 00:00:14]} 0-1